fUST/lending_fUST_20260523
["ID","MTS","AMOUNT","RATE_DAILY","PERIOD"]
[422824286,1779475845000,-224.460873,8.219e-05,2]
[422824284,1779475845000,-172.626031,8.219e-05,2]
[422824287,1779475845000,-494.653931,8.219e-05,2]
[422824289,1779475845000,-305.146361,8.219e-05,2]
[422824288,1779475845000,-172.626031,8.219e-05,2]
[422824291,1779475845000,-494.653931,8.219e-05,2]
[422824292,1779475845000,-172.626031,8.219e-05,2]
[422824274,1779475845000,-172.626031,8.219e-05,2]
[422824293,1779475845000,-224.460873,8.219e-05,2]
[422824285,1779475845000,-305.146361,8.219e-05,2]
[422824270,1779475845000,-172.626031,8.219e-05,2]
[422824261,1779475845000,-494.653931,8.219e-05,2]
[422824272,1779475845000,-878.35,8.219e-05,2]
[422824295,1779475845000,-494.653931,8.219e-05,2]
[422824250,1779475845000,-494.653931,8.219e-05,2]
[422824251,1779475845000,-494.653931,8.219e-05,2]
[422824253,1779475845000,-494.653931,8.219e-05,2]
[422824252,1779475845000,-494.653931,8.219e-05,2]
[422824255,1779475845000,-494.653931,8.219e-05,2]
[422824249,1779475845000,-494.653931,8.219e-05,2]
[422824254,1779475845000,-500.0,8.219e-05,2]
[422824257,1779475845000,-172.626031,8.219e-05,2]
[422824260,1779475845000,-172.626031,8.219e-05,2]
[422824259,1779475845000,-224.460873,8.219e-05,2]
[422824258,1779475845000,-494.653931,8.219e-05,2]
[422824256,1779475845000,-224.460873,8.219e-05,2]
[422824262,1779475845000,-224.460873,8.219e-05,2]
[422824265,1779475845000,-224.460873,8.219e-05,2]
[422824264,1779475845000,-494.653931,8.219e-05,2]
[422824263,1779475845000,-172.626031,8.219e-05,2]
[422824267,1779475845000,-305.146361,8.219e-05,2]
[422824268,1779475845000,-494.653931,8.219e-05,2]
[422824266,1779475845000,-172.626031,8.219e-05,2]
[422824271,1779475845000,-305.146361,8.219e-05,2]
[422824269,1779475845000,-224.460873,8.219e-05,2]
[422824296,1779475845000,-172.626031,8.219e-05,2]
[422824310,1779475845000,-305.146361,8.219e-05,2]
[422824297,1779475845000,-305.146361,8.219e-05,2]
[422824326,1779475845000,-224.46088,8.219e-05,2]
[422824329,1779475845000,-305.146353,8.219e-05,2]
[422824322,1779475845000,-305.146361,8.219e-05,2]
[422824328,1779475845000,-305.146361,8.219e-05,2]
[422824327,1779475845000,-305.146361,8.219e-05,2]
[422824305,1779475845000,-224.460873,8.219e-05,2]
[422824325,1779475845000,-305.146361,8.219e-05,2]
[422824331,1779475845000,-500.0,8.219e-05,2]
[422824332,1779475845000,-500.0,8.219e-05,2]
[422824333,1779475845000,-500.0,8.219e-05,2]
[422824334,1779475845000,-500.0,8.219e-05,2]
[422824335,1779475845000,-841.45,8.219e-05,2]
[422824338,1779475845000,-500.0,8.219e-05,2]
[422824337,1779475845000,-500.0,8.219e-05,2]
[422824341,1779475845000,-500.0,8.219e-05,2]
[422824336,1779475845000,-500.0,8.219e-05,2]
[422824342,1779475845000,-500.0,8.219e-05,2]
[422824339,1779475845000,-500.0,8.219e-05,2]
[422824343,1779475845000,-981.63,8.219e-05,2]
[422824340,1779475845000,-850.16,8.219e-05,2]
[422824344,1779475845000,-500.0,8.219e-05,2]
[422824323,1779475845000,-224.460873,8.219e-05,2]
[422824324,1779475845000,-172.626024,8.219e-05,2]
[422824330,1779475845000,-909.17,8.219e-05,2]
[422824321,1779475845000,-172.626031,8.219e-05,2]
[422824294,1779475845000,-305.146361,8.219e-05,2]
[422824302,1779475845000,-224.460873,8.219e-05,2]
[422824299,1779475845000,-494.653938,8.219e-05,2]
[422824319,1779475845000,-305.146361,8.219e-05,2]
[422824300,1779475845000,-172.626031,8.219e-05,2]
[422824303,1779475845000,-172.626031,8.219e-05,2]
[422824301,1779475845000,-305.146361,8.219e-05,2]
[422824304,1779475845000,-305.146361,8.219e-05,2]
[422824307,1779475845000,-305.146361,8.219e-05,2]
[422824316,1779475845000,-305.146361,8.219e-05,2]
[422824317,1779475845000,-224.460873,8.219e-05,2]
[422824298,1779475845000,-224.460873,8.219e-05,2]
[422824315,1779475845000,-172.626031,8.219e-05,2]
[422824312,1779475845000,-172.626031,8.219e-05,2]
[422824320,1779475845000,-224.460873,8.219e-05,2]
[422824308,1779475845000,-224.460873,8.219e-05,2]
[422824309,1779475845000,-172.626031,8.219e-05,2]
[422824318,1779475845000,-172.626031,8.219e-05,2]
[422824314,1779475845000,-224.460873,8.219e-05,2]
[422824313,1779475845000,-305.146361,8.219e-05,2]
[422824311,1779475845000,-224.460873,8.219e-05,2]
[422824306,1779475845000,-172.626031,8.219e-05,2]
[422824403,1779475846000,-721.357417,8.219e-05,2]
[422824377,1779475846000,-721.357417,8.219e-05,2]
[422824402,1779475846000,-151.0,8.219e-05,2]
[422824391,1779475846000,-523.69829969,8.219e-05,2]
[422824379,1779475846000,-151.0,8.219e-05,2]
[422824385,1779475846000,-197.65911731,8.219e-05,2]
[422824383,1779475846000,-151.0,8.219e-05,2]
[422824349,1779475846000,-603.05,8.219e-05,2]
[422824381,1779475846000,-721.357417,8.219e-05,2]
[422824348,1779475846000,-721.357417,8.219e-05,2]
[422824350,1779475846000,-677.24112931,8.219e-05,2]
[422824345,1779475846000,-500.0,8.219e-05,2]
[422824346,1779475846000,-500.0,8.219e-05,2]
[422824347,1779475846000,-500.0,8.219e-05,2]
[422824406,1779475846000,-721.357417,8.219e-05,2]
[422824375,1779475846000,-44.11628769,8.219e-05,2]
[422824408,1779475846000,-661.96,8.219e-05,2]
[422824399,1779475846000,-721.357417,8.219e-05,2]
[422824407,1779475846000,-721.357417,8.219e-05,2]
[422824404,1779475846000,-167.743814,8.219e-05,2]
[422824417,1779475846000,-235.47888634,8.219e-05,2]
[422824415,1779475846000,-638.96,8.219e-05,2]
[422824414,1779475846000,-721.357417,8.219e-05,2]
[422824413,1779475846000,-500.0,8.219e-05,2]
[422824412,1779475846000,-721.357417,8.219e-05,2]
[422824410,1779475846000,-721.357417,8.219e-05,2]
[422824411,1779475846000,-249.657932,8.219e-05,2]
[422824416,1779475846000,-721.357417,8.219e-05,2]
[422824398,1779475846000,-721.357417,8.219e-05,2]
[422824400,1779475846000,-151.0,8.219e-05,2]
[422824395,1779475846000,-151.0,8.219e-05,2]
[422824393,1779475846000,-500.0,8.219e-05,2]
[422824409,1779475846000,-721.357417,8.219e-05,2]
[422824405,1779475846000,-721.357417,8.219e-05,2]
[422824401,1779475846000,-721.357417,8.219e-05,2]
[422824444,1779475847000,-173.420514,8.219e-05,2]
[422824443,1779475847000,-173.420514,8.219e-05,2]
[422824442,1779475847000,-173.420514,8.219e-05,2]
[422824445,1779475847000,-500.0,8.219e-05,2]
[422824446,1779475847000,-173.420514,8.219e-05,2]
[422824448,1779475847000,-173.420514,8.219e-05,2]
[422824453,1779475847000,-173.420514,8.219e-05,2]
[422824449,1779475847000,-191.056358,8.219e-05,2]
[422824450,1779475847000,-173.420514,8.219e-05,2]
[422824452,1779475847000,-191.056358,8.219e-05,2]
[422824451,1779475847000,-191.056358,8.219e-05,2]
[422824454,1779475847000,-191.056358,8.219e-05,2]
[422824464,1779475847000,-173.420519,8.219e-05,2]
[422824439,1779475847000,-48550.5950958,7.804e-05,2]
[422824447,1779475847000,-191.056358,8.219e-05,2]
[422824441,1779475847000,-173.420514,8.219e-05,2]
[422824431,1779475847000,-24.09484834,8.219e-05,2]
[422824440,1779475847000,-67.98959766,8.219e-05,2]
[422824423,1779475847000,-487.39387669,8.219e-05,2]
[422824422,1779475847000,-485.87853066,8.219e-05,2]
[422824424,1779475847000,-233.96354031,8.219e-05,2]
[422824426,1779475847000,-721.357423,8.219e-05,2]
[422824425,1779475847000,-173.420514,8.219e-05,2]
[422824427,1779475847000,-500.0,8.219e-05,2]
[422824428,1779475847000,-500.0,8.219e-05,2]
[422824430,1779475847000,-173.420514,8.219e-05,2]
[422824429,1779475847000,-173.420514,8.219e-05,2]
[422824466,1779475847000,-191.056358,8.219e-05,2]
[422824435,1779475847000,-815.92,8.219e-05,2]
[422824436,1779475847000,-173.420514,8.219e-05,2]
[422824433,1779475847000,-173.420514,8.219e-05,2]
[422824434,1779475847000,-173.420514,8.219e-05,2]
[422824437,1779475847000,-105.43091634,8.219e-05,2]
[422824438,1779475847000,-1449.4049042,7.804e-05,2]
[422824457,1779475847000,-191.056358,8.219e-05,2]
[422824432,1779475847000,-475.90515166,8.219e-05,2]
[422824455,1779475847000,-173.420514,8.219e-05,2]
[422824473,1779475847000,-3101.51,8.219e-05,2]
[422824478,1779475847000,-151.0,8.219e-05,2]
[422824472,1779475847000,-191.056358,8.219e-05,2]
[422824482,1779475847000,-151.0,8.219e-05,2]
[422824484,1779475847000,-151.0,8.219e-05,2]
[422824485,1779475847000,-151.0,8.219e-05,2]
[422824487,1779475847000,-151.0,8.219e-05,2]
[422824483,1779475847000,-191.056356,8.219e-05,2]
[422824486,1779475847000,-791.78,8.219e-05,2]
[422824489,1779475847000,-151.0,8.219e-05,2]
[422824488,1779475847000,-151.0,8.219e-05,2]
[422824493,1779475847000,-151.0,8.219e-05,2]
[422824491,1779475847000,-500.0,8.219e-05,2]
[422824492,1779475847000,-151.0,8.219e-05,2]
[422824456,1779475847000,-689.99,8.219e-05,2]
[422824471,1779475847000,-191.056358,8.219e-05,2]
[422824476,1779475847000,-191.056358,8.219e-05,2]
[422824490,1779475847000,-151.0,8.219e-05,2]
[422824480,1779475847000,-151.0,8.219e-05,2]
[422824467,1779475847000,-191.056358,8.219e-05,2]
[422824477,1779475847000,-7153.61,8.219e-05,2]
[422824459,1779475847000,-191.056358,8.219e-05,2]
[422824458,1779475847000,-173.420514,8.219e-05,2]
[422824461,1779475847000,-191.056358,8.219e-05,2]
[422824460,1779475847000,-173.420514,8.219e-05,2]
[422824462,1779475847000,-173.420514,8.219e-05,2]
[422824465,1779475847000,-500.0,8.219e-05,2]
[422824481,1779475847000,-191.056358,8.219e-05,2]
[422824479,1779475847000,-2027.26,8.219e-05,2]
[422824469,1779475847000,-191.056358,8.219e-05,2]
[422824468,1779475847000,-500.0,8.219e-05,2]
[422824475,1779475847000,-191.056358,8.219e-05,2]
[422824474,1779475847000,-191.056358,8.219e-05,2]
[422824463,1779475847000,-191.056358,8.219e-05,2]
[422824470,1779475847000,-191.056358,8.219e-05,2]
[422824502,1779475848000,-349.234525,8.219e-05,2]
[422824505,1779475848000,-349.234525,8.219e-05,2]
[422824509,1779475848000,-2506.57,8.219e-05,2]
[422824512,1779475848000,-349.234525,8.219e-05,2]
[422824511,1779475848000,-349.234525,8.219e-05,2]
[422824510,1779475848000,-349.234525,8.219e-05,2]
[422824498,1779475848000,-247.687953,8.219e-05,2]
[422824516,1779475848000,-500.0,8.219e-05,2]
[422824513,1779475848000,-500.0,8.219e-05,2]
[422824500,1779475848000,-500.0,8.219e-05,2]
[422824499,1779475848000,-625.11,8.219e-05,2]
[422824501,1779475848000,-171.03968467,8.219e-05,2]
[422824503,1779475848000,-349.234525,8.219e-05,2]
[422824497,1779475848000,-151.0,8.219e-05,2]
[422824508,1779475848000,-349.234525,8.219e-05,2]
[422824507,1779475848000,-349.234525,8.219e-05,2]
[422824506,1779475848000,-349.234525,8.219e-05,2]
[422824495,1779475848000,-151.0,8.219e-05,2]
[422824496,1779475848000,-151.0,8.219e-05,2]
[422824494,1779475848000,-1220.27,8.219e-05,2]
[422824519,1779475848000,-349.234525,8.219e-05,2]
[422824504,1779475848000,-349.234525,8.219e-05,2]
[422824518,1779475848000,-349.234525,8.219e-05,2]
[422824522,1779475848000,-349.234525,8.219e-05,2]
[422824515,1779475848000,-538.60808482,8.219e-05,2]
[422824536,1779475848000,-191.38561544,8.219e-05,2]
[422824514,1779475848000,-349.234525,8.219e-05,2]
[422824537,1779475848000,-7769.25265156,8.219e-05,2]
[422824539,1779475848000,-6626.15781485,8.219e-05,2]
[422824538,1779475848000,-7960.638267,8.219e-05,2]
[422824535,1779475848000,-1721.11438456,8.219e-05,2]
[422824530,1779475848000,-500.0,8.219e-05,2]
[422824525,1779475848000,-590.02,8.219e-05,2]
[422824529,1779475848000,-500.0,8.219e-05,2]
[422824531,1779475848000,-500.0,8.219e-05,2]
[422824540,1779475848000,-1107.04046865,8.219e-05,2]
[422824528,1779475848000,-500.92905752,8.219e-05,2]
[422824527,1779475848000,-349.234518,8.219e-05,2]
[422824526,1779475848000,-500.0,8.219e-05,2]
[422824524,1779475848000,-349.234525,8.219e-05,2]
[422824534,1779475848000,-6239.52388244,8.219e-05,2]
[422824533,1779475848000,-500.0,8.219e-05,2]
[422824523,1779475848000,-349.234525,8.219e-05,2]
[422824521,1779475848000,-349.234525,8.219e-05,2]
[422824517,1779475848000,-349.234525,8.219e-05,2]
[422824520,1779475848000,-349.234525,8.219e-05,2]
[422824532,1779475848000,-7960.638267,8.219e-05,2]
[422824542,1779476147000,152.0,6.803e-05,30]
[422824541,1779476147000,152.0,6.803e-05,30]
[422824543,1779476495000,437.428,0.00017,120]
[422824544,1779476509000,152.0,6.81e-05,30]
[422824548,1779476638000,152.0,6.81e-05,30]
[422825260,1779477032000,-150.0,6.191e-05,2]
[422825266,1779477032000,-443.0,6.191e-05,2]
[422825258,1779477032000,-150.0,6.191e-05,2]
[422825262,1779477032000,-150.0,6.191e-05,2]
[422825254,1779477032000,-210.37717517,5.933e-05,2]
[422825264,1779477032000,-185.0,6.191e-05,2]
[422825256,1779477032000,-414.68604229,5.983e-05,2]
[422825280,1779477032000,-300.0,7.346e-05,2]
[422825282,1779477032000,-300.0,7.346e-05,2]
[422825268,1779477032000,-152.0,6.402e-05,7]
[422825284,1779477032000,-300.0,7.346e-05,2]
[422825286,1779477032000,-300.0,7.346e-05,2]
[422825270,1779477032000,-169.369556,6.686e-05,2]
[422825290,1779477032000,-300.0,7.346e-05,2]
[422825288,1779477032000,-300.0,7.346e-05,2]
[422825272,1779477032000,-152.0,6.967e-05,2]
[422825274,1779477032000,-200.0,7.045e-05,2]
[422825304,1779477032000,-300.0,7.346e-05,2]
[422825300,1779477032000,-300.0,7.346e-05,2]
[422825302,1779477032000,-300.0,7.346e-05,2]
[422825312,1779477032000,-500.0,7.423e-05,2]
[422825298,1779477032000,-300.0,7.346e-05,2]
[422825308,1779477032000,-300.0,7.346e-05,2]
[422825310,1779477032000,-250.0,7.399e-05,2]
[422825296,1779477032000,-300.0,7.346e-05,2]
[422825294,1779477032000,-300.0,7.346e-05,2]
[422825314,1779477032000,-40143.29676189,7.484e-05,2]
[422825292,1779477032000,-300.0,7.346e-05,2]
[422825278,1779477032000,-1200.0,7.345e-05,2]
[422825276,1779477032000,-300.0,7.345e-05,2]
[422825306,1779477032000,-300.0,7.346e-05,2]
[422825430,1779477038000,-500.0,7.575e-05,2]
[422825429,1779477038000,-4133.83376184,7.484e-05,2]
[422825428,1779477038000,-152.0,6.78e-05,7]
[422825431,1779477038000,-500.0,7.575e-05,2]
[422825433,1779477038000,-500.0,7.575e-05,2]
[422825436,1779477038000,-475.98500366,7.575e-05,2]
[422825438,1779477038000,-50000.0,7.576e-05,2]
[422825434,1779477038000,-500.0,7.575e-05,2]
[422825435,1779477038000,-500.0,7.575e-05,2]
[422825437,1779477038000,-500.0,7.575e-05,2]
[422825432,1779477038000,-500.0,7.575e-05,2]
[422825480,1779477039000,-765.71,8.219e-05,2]
[422825484,1779477039000,-500.0,8.219e-05,2]
[422825475,1779477039000,-500.0,8.219e-05,2]
[422825485,1779477039000,-798.7,8.219e-05,2]
[422825476,1779477039000,-500.0,8.219e-05,2]
[422825473,1779477039000,-500.0,8.219e-05,2]
[422825482,1779477039000,-500.0,8.219e-05,2]
[422825481,1779477039000,-1819.63,8.219e-05,2]
[422825472,1779477039000,-1126.81,8.219e-05,2]
[422825464,1779477039000,-1828.13,8.219e-05,2]
[422825469,1779477039000,-511.35,8.219e-05,2]
[422825474,1779477039000,-500.0,8.219e-05,2]
[422825477,1779477039000,-500.0,8.219e-05,2]
[422825494,1779477039000,-500.0,8.219e-05,2]
[422825479,1779477039000,-500.0,8.219e-05,2]
[422825486,1779477039000,-839.08,8.219e-05,2]
[422825487,1779477039000,-500.0,8.219e-05,2]
[422825498,1779477039000,-500.0,8.219e-05,2]
[422825491,1779477039000,-500.0,8.219e-05,2]
[422825488,1779477039000,-500.0,8.219e-05,2]
[422825495,1779477039000,-500.0,8.219e-05,2]
[422825492,1779477039000,-658.94,8.219e-05,2]
[422825497,1779477039000,-500.0,8.219e-05,2]
[422825496,1779477039000,-554.98,8.219e-05,2]
[422825489,1779477039000,-500.0,8.219e-05,2]
[422825490,1779477039000,-644.91,8.219e-05,2]
[422825465,1779477039000,-500.0,8.219e-05,2]
[422825478,1779477039000,-531.53,8.219e-05,2]
[422825466,1779477039000,-500.0,8.219e-05,2]
[422825456,1779477039000,-155.73852792,8.219e-05,2]
[422825471,1779477039000,-500.0,8.219e-05,2]
[422825443,1779477039000,-766.56709688,7.892e-05,2]
[422825444,1779477039000,-161.72364698,7.892e-05,2]
[422825445,1779477039000,-160.0,7.892e-05,2]
[422825439,1779477039000,-361.198,7.582e-05,2]
[422825440,1779477039000,-600.0,7.841e-05,2]
[422825441,1779477039000,-160.0,7.892e-05,2]
[422825442,1779477039000,-160.0,7.892e-05,2]
[422825449,1779477039000,-1003.66408492,8e-05,2]
[422825446,1779477039000,-160.0,7.892e-05,2]
[422825457,1779477039000,-500.0,8.219e-05,2]
[422825458,1779477039000,-746.71,8.219e-05,2]
[422825447,1779477039000,-568.27870913,7.91e-05,2]
[422825448,1779477039000,-489.3295299,7.983e-05,2]
[422825450,1779477039000,-420.0,8.08e-05,2]
[422825452,1779477039000,-8556.96076878,8.195e-05,21]
[422825453,1779477039000,-1805.000092,8.219e-05,2]
[422825493,1779477039000,-500.0,8.219e-05,2]
[422825455,1779477039000,-3533.1101,8.219e-05,2]
[422825454,1779477039000,-206.78583916,8.219e-05,2]
[422825451,1779477039000,-1680.0,8.08e-05,2]
[422825460,1779477039000,-843.91,8.219e-05,2]
[422825468,1779477039000,-758.83,8.219e-05,2]
[422825461,1779477039000,-500.0,8.219e-05,2]
[422825467,1779477039000,-500.0,8.219e-05,2]
[422825462,1779477039000,-500.0,8.219e-05,2]
[422825459,1779477039000,-500.0,8.219e-05,2]
[422825463,1779477039000,-913.9,8.219e-05,2]
[422825470,1779477039000,-640.06322723,8.219e-05,2]
[422825499,1779477039000,-500.0,8.219e-05,2]
[422825483,1779477039000,-2018.64,8.219e-05,2]
[422825502,1779477039000,-500.0,8.219e-05,2]
[422825530,1779477039000,-500.0,8.219e-05,2]
[422825537,1779477039000,-264.94053097,8.219e-05,2]
[422825528,1779477039000,-501.76599074,8.219e-05,2]
[422825534,1779477039000,-500.0,8.219e-05,2]
[422825535,1779477039000,-806.39,8.219e-05,2]
[422825539,1779477039000,-500.94911394,8.219e-05,2]
[422825547,1779477039000,-500.0,8.219e-05,2]
[422825548,1779477039000,-500.0,8.219e-05,2]
[422825538,1779477039000,-500.0,8.219e-05,2]
[422825550,1779477039000,-500.0,8.219e-05,2]
[422825549,1779477039000,-500.0,8.219e-05,2]
[422825540,1779477039000,-500.0,8.219e-05,2]
[422825546,1779477039000,-940.73,8.219e-05,2]
[422825531,1779477039000,-500.0,8.219e-05,2]
[422825542,1779477039000,-500.0,8.219e-05,2]
[422825541,1779477039000,-500.0,8.219e-05,2]
[422825543,1779477039000,-500.0,8.219e-05,2]
[422825552,1779477039000,-500.0,8.219e-05,2]
[422825551,1779477039000,-500.0,8.219e-05,2]
[422825556,1779477039000,-500.0,8.219e-05,2]
[422825554,1779477039000,-500.0,8.219e-05,2]
[422825553,1779477039000,-500.0,8.219e-05,2]
[422825559,1779477039000,-785.48,8.219e-05,2]
[422825557,1779477039000,-500.0,8.219e-05,2]
[422825555,1779477039000,-501.5559347,8.219e-05,2]
[422825558,1779477039000,-1005.6,8.219e-05,2]
[422825501,1779477039000,-611.94,8.219e-05,2]
[422825560,1779477039000,-634.37,8.219e-05,2]
[422825544,1779477039000,-553.83,8.219e-05,2]
[422825532,1779477039000,-500.0,8.219e-05,2]
[422825545,1779477039000,-658.78,8.219e-05,2]
[422825526,1779477039000,-500.0,8.219e-05,2]
[422825503,1779477039000,-208.61564439,8.219e-05,2]
[422825527,1779477039000,-733.95,8.219e-05,2]
[422825504,1779477039000,-500.0,8.219e-05,2]
[422825505,1779477039000,-500.0,8.219e-05,2]
[422825507,1779477039000,-640.76,8.219e-05,2]
[422825500,1779477039000,-855.3257,8.219e-05,2]
[422825508,1779477039000,-314.74062126,8.219e-05,2]
[422825511,1779477039000,-1251.15,8.219e-05,2]
[422825509,1779477039000,-482.51431663,8.219e-05,2]
[422825510,1779477039000,-895.51,8.219e-05,2]
[422825512,1779477039000,-417.24811089,8.219e-05,2]
[422825513,1779477039000,-500.0,8.219e-05,2]
[422825514,1779477039000,-500.0,8.219e-05,2]
[422825522,1779477039000,-761.02,8.219e-05,2]
[422825506,1779477039000,-500.0,8.219e-05,2]
[422825515,1779477039000,-363.65877742,8.219e-05,2]
[422825536,1779477039000,-500.0,8.219e-05,2]
[422825521,1779477039000,-500.0,8.219e-05,2]
[422825529,1779477039000,-500.0,8.219e-05,2]
[422825525,1779477039000,-521.18,8.219e-05,2]
[422825520,1779477039000,-500.0,8.219e-05,2]
[422825533,1779477039000,-500.0,8.219e-05,2]
[422825518,1779477039000,-508.47,8.219e-05,2]
[422825516,1779477039000,-500.0,8.219e-05,2]
[422825523,1779477039000,-1089.72,8.219e-05,2]
[422825517,1779477039000,-500.0,8.219e-05,2]
[422825519,1779477039000,-500.0,8.219e-05,2]
[422825524,1779477039000,-500.0,8.219e-05,2]
[422825598,1779477040000,-500.0,8.219e-05,2]
[422825618,1779477040000,-500.0,8.219e-05,2]
[422825601,1779477040000,-500.0,8.219e-05,2]
[422825596,1779477040000,-500.0,8.219e-05,2]
[422825603,1779477040000,-500.0,8.219e-05,2]
[422825600,1779477040000,-607.52,8.219e-05,2]
[422825593,1779477040000,-500.0,8.219e-05,2]
[422825605,1779477040000,-500.0,8.219e-05,2]
[422825619,1779477040000,-554.80828401,8.219e-05,2]
[422825591,1779477040000,-770.94,8.219e-05,2]
[422825594,1779477040000,-2005.91,8.219e-05,2]
[422825599,1779477040000,-905.8,8.219e-05,2]
[422825620,1779477040000,-500.0,8.219e-05,2]
[422825627,1779477040000,-500.0,8.219e-05,2]
[422825611,1779477040000,-744.91,8.219e-05,2]
[422825609,1779477040000,-581.94,8.219e-05,2]
[422825607,1779477040000,-500.0,8.219e-05,2]
[422825625,1779477040000,-500.0,8.219e-05,2]
[422825613,1779477040000,-500.0,8.219e-05,2]
[422825615,1779477040000,-500.0,8.219e-05,2]
[422825617,1779477040000,-500.0,8.219e-05,2]
[422825616,1779477040000,-500.0,8.219e-05,2]
[422825629,1779477040000,-500.0,8.219e-05,2]
[422825630,1779477040000,-1029.09,8.219e-05,2]
[422825636,1779477040000,-500.0,8.219e-05,2]
[422825638,1779477040000,-500.0,8.219e-05,2]
[422825640,1779477040000,-500.0,8.219e-05,2]
[422825602,1779477040000,-908.18,8.219e-05,2]
[422825621,1779477040000,-500.0,8.219e-05,2]
[422825592,1779477040000,-500.0,8.219e-05,2]
[422825563,1779477040000,-758.79,8.219e-05,2]
[422825588,1779477040000,-914.2627,8.219e-05,2]
[422825639,1779477040000,-500.0,8.219e-05,2]
[422825561,1779477040000,-500.0,8.219e-05,2]
[422825562,1779477040000,-363.27556167,8.219e-05,2]
[422825565,1779477040000,-500.0,8.219e-05,2]
[422825564,1779477040000,-782.01,8.219e-05,2]
[422825566,1779477040000,-500.0,8.219e-05,2]
[422825575,1779477040000,-500.45575526,8.219e-05,2]
[422825570,1779477040000,-500.0,8.219e-05,2]
[422825568,1779477040000,-500.0,8.219e-05,2]
[422825567,1779477040000,-500.0,8.219e-05,2]
[422825574,1779477040000,-1169.42,8.219e-05,2]
[422825576,1779477040000,-500.0,8.219e-05,2]
[422825571,1779477040000,-500.0,8.219e-05,2]
[422825586,1779477040000,-500.0,8.219e-05,2]
[422825569,1779477040000,-599.07,8.219e-05,2]
[422825572,1779477040000,-1299.41,8.219e-05,2]
[422825573,1779477040000,-500.0,8.219e-05,2]
[422825579,1779477040000,-571.03919234,8.219e-05,2]
[422825590,1779477040000,-500.0,8.219e-05,2]
[422825589,1779477040000,-520.29,8.219e-05,2]
[422825583,1779477040000,-1315.81,8.219e-05,2]
[422825582,1779477040000,-500.0,8.219e-05,2]
[422825584,1779477040000,-500.0,8.219e-05,2]
[422825578,1779477040000,-500.0,8.219e-05,2]
[422825585,1779477040000,-500.0,8.219e-05,2]
[422825581,1779477040000,-500.0,8.219e-05,2]
[422825580,1779477040000,-682.07,8.219e-05,2]
[422825587,1779477040000,-706.09,8.219e-05,2]
[422825577,1779477040000,-565.44,8.219e-05,2]
[422825635,1779477040000,-500.0,8.219e-05,2]
[422825683,1779477040000,-2002.64,8.219e-05,2]
[422825631,1779477040000,-500.0,8.219e-05,2]
[422825676,1779477040000,-592.64,8.219e-05,2]
[422825674,1779477040000,-500.0,8.219e-05,2]
[422825673,1779477040000,-1897.72,8.219e-05,2]
[422825680,1779477040000,-638.97,8.219e-05,2]
[422825679,1779477040000,-729.34,8.219e-05,2]
[422825678,1779477040000,-500.0,8.219e-05,2]
[422825675,1779477040000,-500.0,8.219e-05,2]
[422825682,1779477040000,-500.0,8.219e-05,2]
[422825672,1779477040000,-734.09,8.219e-05,2]
[422825681,1779477040000,-455.385101,8.219e-05,2]
[422825684,1779477040000,-500.0,8.219e-05,2]
[422825686,1779477040000,-741.35,8.219e-05,2]
[422825699,1779477040000,-633.94,8.219e-05,2]
[422825677,1779477040000,-602.41,8.219e-05,2]
[422825697,1779477040000,-800.14,8.219e-05,2]
[422825687,1779477040000,-500.6097746,8.219e-05,2]
[422825689,1779477040000,-500.0,8.219e-05,2]
[422825693,1779477040000,-500.0,8.219e-05,2]
[422825691,1779477040000,-500.0,8.219e-05,2]
[422825695,1779477040000,-881.14,8.219e-05,2]
[422825694,1779477040000,-500.0,8.219e-05,2]
[422825692,1779477040000,-500.0,8.219e-05,2]
[422825690,1779477040000,-547.88,8.219e-05,2]
[422825700,1779477040000,-500.0,8.219e-05,2]
[422825703,1779477040000,-500.0,8.219e-05,2]
[422825702,1779477040000,-500.0,8.219e-05,2]
[422825701,1779477040000,-3838.86,8.219e-05,2]
[422825637,1779477040000,-500.0,8.219e-05,2]